bitfinex-derivatives/quotes_BTCF0:USTF0_20250417
["timestamp","ask_amount","ask_price","bid_price","bid_amount"]
[1744871057007,0.511612,84529.0,84528.0,0.001]
[1744871057205,0.511612,84529.0,84528.0,0.003]
[1744871057407,0.511612,84529.0,84528.0,0.002]
[1744871059013,0.1183176,84525.0,84524.0,0.0314]
[1744871060212,0.1826176,84525.0,84524.0,0.0334]
[1744871061710,0.1826176,84525.0,84524.0,0.0314]
[1744871061918,0.1826176,84525.0,84524.0,0.0324]
[1744871062209,0.5434176,84525.0,84524.0,0.0324]
[1744871071220,0.5434176,84525.0,84524.0,0.150719]
[1744871071520,0.5434176,84525.0,84524.0,0.0324]
[1744871074019,0.4791176,84525.0,84524.0,0.0624]
[1744871074726,0.4791176,84525.0,84524.0,0.180719]
[1744871075619,0.4791176,84525.0,84524.0,0.0624]
[1744871078729,0.4791176,84525.0,84524.0,0.180719]
[1744871082733,0.1183176,84525.0,84524.0,0.180719]
[1744871083132,0.4791176,84525.0,84524.0,0.180719]
[1744871083931,0.4791976,84525.0,84524.0,0.180719]
[1744871084130,0.36088,84525.0,84524.0,0.180719]
[1744871084328,0.4791976,84525.0,84524.0,0.180719]
[1744871085030,0.4791176,84525.0,84524.0,0.180719]
[1744871085627,0.4791976,84525.0,84524.0,0.180719]
[1744871087838,0.1183976,84525.0,84524.0,0.180719]
[1744871100451,0.1497976,84525.0,84524.0,0.180719]
[1744871112055,0.1183976,84525.0,84524.0,0.180719]
[1744871113448,0.1183976,84525.0,84524.0,0.256279]
[1744871114460,0.00010801,84529.0,84528.0,0.1183134]
[1744871114962,0.1183085,84532.0,84531.0,0.1183092]
[1744871115557,0.1183085,84532.0,84531.0,0.1802092]
[1744871115759,0.00010801,84535.0,84534.0,0.118305]
[1744871115953,0.00010801,84535.0,84532.0,0.0591533]
[1744871115954,0.0311,84539.0,84538.0,0.1182994]
[1744871116157,0.005,84540.0,84539.0,0.210898]
[1744871116363,0.1232966,84540.0,84539.0,0.210898]
[1744871116561,0.1233766,84540.0,84539.0,0.210898]
[1744871117059,0.1566766,84540.0,84539.0,0.210898]
[1744871117860,0.1576766,84540.0,84539.0,0.210898]
[1744871120164,0.1566766,84540.0,84539.0,0.210898]
[1744871120661,0.1576766,84540.0,84539.0,0.210898]
[1744871125669,0.1576766,84540.0,84539.0,0.180198]
[1744871125871,0.1888766,84540.0,84539.0,0.180198]
[1744871127176,0.1888766,84540.0,84539.0,0.149498]
[1744871138178,0.1888766,84540.0,84539.0,0.0312]
[1744871138368,0.1888766,84540.0,84534.0,0.059152]
[1744871138369,0.1183078,84532.0,84531.0,0.00017754]
[1744871139371,0.1183078,84532.0,84531.0,0.11848674]
[1744871139570,0.1491078,84532.0,84531.0,0.15118674]
[1744871140178,0.1183078,84532.0,84531.0,0.15118674]
[1744871145995,0.1183056,84534.0,84533.0,0.118305]
[1744871146503,0.1183029,84536.0,84535.0,0.1183022]
[1744871146898,0.1183029,84536.0,84535.0,0.1511022]
[1744871148597,0.1193029,84536.0,84535.0,0.1511022]
[1744871154907,0.1852029,84536.0,84535.0,0.1511022]
[1744871159507,0.1852029,84536.0,84535.0,0.1832022]
[1744871161314,0.1852029,84536.0,84535.0,0.2142022]
[1744871167121,0.001,84536.0,84535.0,0.2142022]
[1744871167710,0.00108,84536.0,84535.0,0.2142022]
[1744871168312,0.00108,84536.0,84535.0,0.2897222]
[1744871169820,0.1193822,84536.0,84535.0,0.2897222]
[1744871176825,0.00108,84536.0,84535.0,0.2897222]
[1744871177329,0.4114,84555.0,84549.0,0.118284]
[1744871177524,0.4114,84555.0,84554.0,0.118277]
[1744871177825,0.13004565,84569.0,84568.0,0.1182574]
[1744871178119,0.118256,84569.0,84568.0,0.5545774]
[1744871178522,0.118256,84569.0,84568.0,0.43632]
[1744871179115,0.118256,84569.0,84568.0,0.5545774]
[1744871179317,0.00014581,84571.0,84570.0,0.1182547]
[1744871179525,0.0333,84575.0,84574.0,0.1182491]
[1744871179826,0.1482463,84576.0,84575.0,0.1182477]
[1744871180019,0.1482463,84576.0,84575.0,0.4790477]
[1744871180821,0.1483263,84576.0,84575.0,0.4790477]
[1744871181020,0.1482463,84576.0,84575.0,0.4790477]
[1744871181220,0.1482463,84576.0,84575.0,0.5431477]
[1744871181221,0.1483263,84576.0,84575.0,0.5431477]
[1744871182325,0.1483263,84576.0,84575.0,0.5119477]
[1744871182525,0.1483263,84576.0,84575.0,0.3977]
[1744871183529,0.1483263,84576.0,84575.0,0.5119477]
[1744871183922,0.1483263,84576.0,84575.0,0.5129477]
[1744871184130,0.1483263,84576.0,84575.0,0.5109477]
[1744871184332,0.1483263,84576.0,84575.0,0.5139477]
[1744871184531,0.1483263,84576.0,84575.0,0.5129477]
[1744871184832,0.1483263,84576.0,84575.0,0.5139477]
[1744871187928,0.1483263,84576.0,84575.0,0.3957]
[1744871189032,0.1483263,84576.0,84575.0,0.3648]
[1744871189828,0.1483263,84576.0,84575.0,0.4830477]
[1744871190030,0.03008,84576.0,84575.0,0.4830477]
[1744871190230,8e-05,84576.0,84575.0,0.4830477]
[1744871190431,0.4114,84581.0,84580.0,0.1182407]
[1744871190734,0.5296393,84581.0,84580.0,0.1182407]
[1744871191337,0.5296393,84581.0,84580.0,0.1500407]
[1744871191532,0.5296393,84581.0,84580.0,0.1804407]
[1744871191838,0.5297193,84581.0,84580.0,0.1804407]
[1744871192636,0.1183193,84581.0,84580.0,0.1804407]
[1744871193035,0.1182393,84581.0,84580.0,0.1804407]
[1744871193234,0.1183193,84581.0,84580.0,0.1844407]
[1744871195041,0.1183193,84581.0,84580.0,0.5452407]
[1744871195936,8e-05,84581.0,84580.0,0.5452407]
[1744871196238,0.00019684,84591.0,84580.0,0.5452407]
[1744871196239,0.3608,84627.0,84580.0,0.817]
[1744871196534,0.1182015,84608.0,84607.0,0.3608]
[1744871197034,0.1828015,84608.0,84607.0,0.3608]
[1744871197236,0.1828015,84608.0,84607.0,0.36951019]
[1744871198935,0.2139015,84608.0,84607.0,0.36951019]
[1744871199137,0.2139015,84608.0,84607.0,0.40021019]
[1744871199939,0.2139015,84608.0,84607.0,0.36951019]
[1744871202543,0.2139015,84608.0,84607.0,0.00871019]
[1744871202744,0.1182029,84607.0,84606.0,0.3608]
[1744871203239,0.1182071,84604.0,84603.0,0.1182085]
[1744871203442,0.1182071,84604.0,84603.0,0.4790085]
[1744871203634,0.1182071,84604.0,84603.0,0.3608]
[1744871204636,0.1182113,84601.0,84600.0,0.07544]
[1744871205238,0.1182127,84600.0,84596.0,0.3608]
[1744871205432,0.1496127,84600.0,84596.0,0.3608]
[1744871206431,0.1496127,84600.0,84589.0,0.07544]
[1744871206637,0.5104127,84600.0,84589.0,0.07544]
[1744871206931,0.5434127,84600.0,84589.0,0.07544]
[1744871207333,0.5434127,84600.0,84590.0,0.0321]
[1744871208340,0.5434127,84600.0,84597.0,0.00874806]
[1744871208746,0.1182155,84598.0,84597.0,0.00874806]
[1744871208932,0.1182267,84590.0,84589.0,0.1936675]
[1744871209537,0.1182267,84590.0,84589.0,0.1182275]
[1744871209743,0.1182309,84588.0,84587.0,0.1182301]
[1744871210141,0.1833309,84588.0,84587.0,0.1182301]
[1744871210940,0.1833309,84588.0,84587.0,0.1212301]
[1744871211140,0.1833309,84588.0,84587.0,0.1518301]
[1744871211341,0.1182309,84588.0,84587.0,0.1518301]
[1744871211535,0.1182309,84588.0,84587.0,0.16063228]
[1744871211945,0.1183109,84588.0,84587.0,0.16063228]
[1744871212548,0.1183109,84588.0,84587.0,0.16263228]
[1744871213143,0.1183109,84588.0,84587.0,0.04440218]
[1744871213448,0.1803109,84588.0,84587.0,0.04440218]
[1744871213639,0.1803109,84588.0,84587.0,0.16263308]
[1744871215243,8e-05,84588.0,84587.0,0.16263308]
[1744871219043,8e-05,84588.0,84587.0,0.23803308]
[1744871219246,0.00010801,84595.0,84594.0,0.1182211]
[1744871219545,0.00017661,84598.0,84597.0,0.1182169]
[1744871220245,0.00025661,84598.0,84597.0,0.1509169]
[1744871221447,0.00025661,84598.0,84597.0,0.1549169]
[1744871221838,0.00025661,84598.0,84597.0,0.1863169]
[1744871222749,0.00025661,84598.0,84597.0,0.1883169]
[1744871223346,0.1181811,84623.0,84613.0,0.1181946]
[1744871223552,0.0590926,84620.0,84613.0,0.1181946]
[1744871223740,0.0322,84617.0,84613.0,0.1181946]
[1744871224049,0.1181932,84614.0,84613.0,0.1494946]
[1744871224348,0.1831732,84614.0,84613.0,0.1494946]
[1744871224742,0.06498,84614.0,84613.0,0.1494946]
[1744871224944,8e-05,84614.0,84613.0,0.1494946]
[1744871225348,0.005,84618.0,84613.0,0.0313]
[1744871225548,0.005,84618.0,84617.0,0.118189]
[1744871226045,0.005,84618.0,84617.0,0.193589]
[1744871226248,0.005,84618.0,84617.0,0.289989]
[1744871226749,0.00508,84618.0,84617.0,0.289989]
[1744871227345,0.00010801,84628.0,84627.0,0.118175]
[1744871228047,0.1181713,84630.0,84629.0,0.1181722]
[1744871228747,0.1181736,84628.0,84627.0,0.096]
[1744871228951,0.118175,84627.0,84626.0,0.3608]
[1744871229648,0.118175,84627.0,84626.0,0.4789764]
[1744871229845,0.118175,84627.0,84626.0,0.3608]
[1744871230752,0.118175,84627.0,84626.0,0.4789764]
[1744871232053,0.1816733,84629.0,84628.0,0.1181736]
[1744871234363,0.1816733,84629.0,84628.0,0.1836736]
[1744871235058,0.0305,84629.0,84628.0,0.1836736]
[1744871235455,0.1486722,84629.0,84628.0,0.1836736]
[1744871235648,0.1487522,84629.0,84628.0,0.1836736]
[1744871238963,0.1487522,84629.0,84628.0,0.1511736]
[1744871240860,0.1487522,84629.0,84628.0,0.1823736]
[1744871241963,8e-05,84629.0,84628.0,0.1823736]
[1744871242465,0.1181653,84634.0,84633.0,0.1181666]
[1744871242759,0.1181653,84634.0,84633.0,0.5543666]
[1744871243157,0.1181653,84634.0,84633.0,0.6166666]
[1744871244569,0.1500653,84634.0,84633.0,0.6166666]
[1744871244959,0.1500653,84634.0,84633.0,0.62561253]
[1744871246864,0.1809653,84634.0,84633.0,0.62561253]
[1744871247554,0.1181653,84634.0,84633.0,0.62561253]
[1744871250469,0.1181653,84634.0,84633.0,0.26481253]
[1744871250665,0.1181653,84634.0,84633.0,0.62561253]
[1744871250866,0.1181653,84634.0,84633.0,0.26481253]
[1744871251066,0.1181653,84634.0,84633.0,0.62561253]
[1744871251569,0.1181653,84634.0,84633.0,0.26481253]
[1744871252157,0.1181653,84634.0,84633.0,0.62561253]
[1744871252963,0.00010801,84635.0,84634.0,0.1181652]
[1744871253169,0.00010801,84635.0,84634.0,0.1835652]
[1744871253465,0.1181638,84635.0,84634.0,0.1835652]
[1744871253665,0.1182438,84635.0,84634.0,0.1835652]
[1744871254069,0.1182438,84635.0,84634.0,0.2589252]
[1744871254259,0.1182438,84635.0,84634.0,0.1835652]
[1744871254466,0.1182438,84635.0,84634.0,0.2589252]
[1744871255766,8e-05,84635.0,84634.0,0.2589252]
[1744871258174,0.0590764,84643.0,84639.0,0.0590786]
[1744871258364,0.0590764,84643.0,84642.0,0.4789541]
[1744871259273,0.0591564,84643.0,84642.0,0.4789541]
[1744871260476,0.1215564,84643.0,84642.0,0.5543141]
[1744871265587,0.06248,84643.0,84642.0,0.4789541]
[1744871265780,8e-05,84643.0,84642.0,0.5543141]
[1744871265980,0.005,84644.0,84643.0,0.1181527]
[1744871266186,0.005,84644.0,84643.0,0.2137527]
[1744871266589,0.1231513,84644.0,84643.0,0.2137527]
[1744871267485,0.1551513,84644.0,84643.0,0.2137527]
[1744871269895,0.1551513,84644.0,84643.0,0.1513527]
[1744871270291,0.1551513,84644.0,84643.0,0.2267127]
[1744871270493,0.1882513,84644.0,84643.0,0.2267127]
[1744871272698,0.1231513,84644.0,84643.0,0.2578127]
[1744871273891,0.1559513,84644.0,84643.0,0.2578127]
[1744871274092,0.1231513,84644.0,84643.0,0.2578127]
[1744871274293,0.005,84644.0,84643.0,0.2578127]
[1744871274705,0.00508,84644.0,84643.0,0.2578127]
[1744871275499,0.005,84670.0,84658.0,0.1181317]
[1744871275694,0.11839603,84659.0,84658.0,0.5560117]
[1744871275893,0.1181303,84659.0,84658.0,0.6177117]
[1744871276104,0.1182103,84659.0,84658.0,0.6177117]
[1744871276695,0.1488103,84659.0,84658.0,0.6177117]
[1744871276895,0.1182103,84659.0,84658.0,0.6177117]
[1744871277498,0.1181303,84659.0,84658.0,0.6197117]
[1744871277700,0.1182103,84659.0,84658.0,0.6197117]
[1744871278000,0.1488103,84659.0,84658.0,0.6197117]
[1744871278207,0.1488103,84659.0,84658.0,0.6207117]
[1744871279803,0.1488103,84659.0,84658.0,0.47188]
[1744871280298,0.1488103,84659.0,84658.0,0.5900117]
[1744871280803,0.1488103,84659.0,84658.0,0.44088]
[1744871281002,0.1488103,84659.0,84658.0,0.08008]
[1744871281201,0.1488103,84659.0,84658.0,0.003]
[1744871281600,0.1488103,84659.0,84658.0,0.0338]
[1744871281805,0.1488103,84659.0,84658.0,0.1519317]
[1744871282006,0.1487303,84659.0,84658.0,0.2150317]
[1744871282198,0.1488103,84659.0,84658.0,0.2150317]
[1744871282609,0.1488103,84659.0,84658.0,0.2140317]
[1744871282904,0.1488103,84659.0,84658.0,0.2150317]
[1744871283307,0.1488103,84659.0,84658.0,0.2140317]
[1744871283802,0.1182103,84659.0,84658.0,0.2140317]
[1744871283999,8e-05,84659.0,84658.0,0.2150317]
[1744871284199,8e-05,84659.0,84658.0,0.2140317]
[1744871284505,8e-05,84659.0,84658.0,0.2150317]
[1744871285709,0.1182103,84659.0,84658.0,0.2150317]
[1744871285910,8e-05,84659.0,84658.0,0.2150317]
[1744871286409,0.1181298,84660.0,84659.0,0.1181303]
[1744871286610,0.1181298,84660.0,84659.0,0.4789303]
[1744871286801,0.1181298,84660.0,84659.0,0.5428303]
[1744871287508,0.11823031,84665.0,84664.0,0.1181234]
[1744871287701,0.00010801,84665.0,84664.0,0.1181234]
[1744871287901,0.0590596,84667.0,84666.0,0.1771775]
[1744871288303,0.0590596,84667.0,84666.0,0.2722775]
[1744871288596,0.0591396,84667.0,84666.0,0.2722775]
[1744871289207,8e-05,84667.0,84666.0,0.2722775]
[1744871290009,0.0590585,84669.0,84668.0,0.1181164]
[1744871290212,0.0590585,84669.0,84668.0,0.5430164]
[1744871290910,0.0590585,84669.0,84668.0,0.55457446]
[1744871295308,0.005,84670.0,84669.0,0.1181164]
[1744871295612,0.005,84670.0,84669.0,0.1819164]
[1744871296714,0.00014581,84675.0,84674.0,0.1181094]
[1744871296913,0.1512052,84678.0,84677.0,0.1181052]
[1744871297114,0.1512052,84678.0,84677.0,0.4789052]
[1744871297614,0.1512052,84678.0,84677.0,0.5100052]
[1744871297807,0.0331,84678.0,84677.0,0.5425052]
[1744871298114,0.1512038,84678.0,84677.0,0.5425052]
[1744871298315,0.1841038,84678.0,84677.0,0.5425052]
[1744871299617,0.1841838,84678.0,84677.0,0.5425052]
[1744871300521,0.1841838,84678.0,84677.0,0.55136036]
[1744871300819,0.1841838,84678.0,84677.0,0.40075516]
[1744871301008,0.1841838,84678.0,84677.0,0.51886036]
[1744871301205,0.1841838,84678.0,84677.0,0.59594036]
[1744871301612,0.1841838,84678.0,84677.0,0.47783516]
[1744871302113,0.1841838,84678.0,84677.0,0.59594036]
[1744871306217,0.1841838,84678.0,84677.0,0.62634036]
[1744871307119,0.1841838,84678.0,84677.0,0.62810036]
[1744871308419,0.1181838,84678.0,84677.0,0.62810036]
[1744871309323,0.1493838,84678.0,84677.0,0.62810036]
[1744871310027,8e-05,84678.0,84677.0,0.62810036]
[1744871310225,0.03320801,84681.0,84680.0,0.118101]
[1744871310522,0.0312,84683.0,84682.0,0.1180982]
[1744871311027,0.1,84700.0,84690.0,0.1180871]
[1744871311227,0.0312,84695.0,84690.0,0.5577271]
[1744871311415,0.1180853,84692.0,84691.0,0.1180857]
[1744871311610,0.0590408,84694.0,84693.0,0.1180829]
[1744871311815,0.0891408,84694.0,84693.0,0.1180829]
[1744871312313,0.03130801,84695.0,84693.0,0.1180829]
[1744871312314,0.00010801,84695.0,84694.0,0.1180815]
[1744871312515,0.0301,84695.0,84694.0,0.1841815]
[1744871312720,0.03018,84695.0,84694.0,0.1512815]
[1744871312911,0.1804801,84695.0,84694.0,0.1512815]
[1744871313113,0.1805601,84695.0,84694.0,0.1512815]
[1744871314216,8e-05,84695.0,84694.0,0.1512815]
[1744871314417,0.005,84696.0,84695.0,0.1180801]
[1744871314920,0.005,84696.0,84695.0,0.1804801]
[1744871315424,0.1230787,84696.0,84695.0,0.1804801]
[1744871315725,0.1877787,84696.0,84695.0,0.1804801]
[1744871318832,0.1877787,84696.0,84695.0,0.032]
[1744871319130,0.1877787,84696.0,84695.0,0.2289201]
[1744871321433,0.1877787,84696.0,84695.0,0.1500801]
[1744871321726,0.1877787,84696.0,84695.0,0.2331201]
[1744871323124,0.0697,84696.0,84695.0,0.2331201]
[1744871323326,0.1877787,84696.0,84695.0,0.2331201]
[1744871323828,0.1230787,84696.0,84695.0,0.2331201]
[1744871325323,0.1551787,84696.0,84695.0,0.2331201]
[1744871326128,0.0371,84696.0,84695.0,0.5939201]
[1744871326329,0.005,84696.0,84695.0,0.5939201]
[1744871327332,0.00508,84696.0,84695.0,0.5939201]
[1744871327529,0.005,84696.0,84695.0,0.5939201]
[1744871327833,0.1231587,84696.0,84695.0,0.5939201]
[1744871328634,0.00508,84696.0,84695.0,0.5939201]
[1744871330127,0.1231587,84696.0,84695.0,0.5939201]
[1744871330434,0.1866587,84696.0,84695.0,0.5108801]
[1744871330634,0.1866587,84696.0,84695.0,0.5939201]
[1744871331535,0.1866587,84696.0,84695.0,0.5108801]
[1744871331837,0.1866587,84696.0,84695.0,0.5939201]
[1744871332232,0.06858,84696.0,84695.0,0.5939201]
[1744871332627,0.03698,84696.0,84695.0,0.5939201]
[1744871333633,0.1550587,84696.0,84695.0,0.5939201]
[1744871333833,0.1872587,84696.0,84695.0,0.5939201]
[1744871338232,0.1872587,84696.0,84695.0,0.47584]
[1744871338435,0.1180913,84687.0,84686.0,0.00017711]
[1744871338738,0.1180913,84688.0,84687.0,0.177127]
[1744871338921,0.1180913,84688.0,84687.0,0.207127]
[1744871338922,0.1820913,84688.0,84687.0,0.207127]
[1744871339127,0.1820913,84688.0,84687.0,0.238027]
[1744871339435,0.064,84688.0,84687.0,0.2970711]
[1744871340334,0.064,84688.0,84687.0,0.3801111]
[1744871340634,0.1180801,84695.0,84692.0,0.0590421]
[1744871340834,0.1180801,84695.0,84693.0,0.1180829]
[1744871340835,0.1511815,84694.0,84693.0,0.1180829]
[1744871346440,0.1511815,84694.0,84691.0,0.08304]
[1744871346441,0.1180843,84692.0,84691.0,0.08304]
[1744871347136,0.1819843,84692.0,84691.0,0.2011257]
[1744871347839,0.1819843,84692.0,84691.0,0.08304]
[1744871348642,0.1819843,84692.0,84690.0,0.3608]
[1744871348643,0.1180857,84691.0,84690.0,0.3608]
[1744871348828,0.1504857,84691.0,84690.0,0.3608]
[1744871349036,0.1827857,84691.0,84690.0,0.3608]
[1744871351342,0.1827857,84691.0,84690.0,0.4788871]
[1744871351533,0.1827857,84691.0,84690.0,0.3608]
[1744871352543,0.1827857,84691.0,84690.0,0.4788871]
[1744871357550,0.1827857,84691.0,84690.0,0.5400871]
[1744871364947,0.1827857,84691.0,84690.0,0.5096871]
[1744871366751,0.1827857,84691.0,84690.0,0.5416871]
[1744871370056,0.1827857,84691.0,84690.0,0.1808871]
[1744871379151,0.1180885,84689.0,84688.0,0.3608]
[1744871380560,0.4198441,84690.0,84686.0,0.00017711]
[1744871380755,0.1180913,84687.0,84686.0,0.00017711]
[1744871380955,0.118101,84680.0,84679.0,0.0328]
[1744871381266,0.118101,84680.0,84676.0,0.0826]
[1744871381267,0.1181038,84678.0,84676.0,0.0826]
[1744871381461,0.1181052,84677.0,84676.0,0.0826]
[1744871381655,0.1506052,84677.0,84676.0,0.0826]
[1744871381955,0.1181122,84672.0,84671.0,0.31072292]
[1744871382162,0.1181122,84672.0,84671.0,0.31963337]
[1744871382762,0.1181122,84672.0,84671.0,0.30759643]
[1744871383061,0.1505122,84672.0,84671.0,0.30759643]
[1744871383358,0.1505122,84672.0,84671.0,0.18948353]
[1744871383861,0.1505122,84672.0,84671.0,0.19048353]
[1744871384453,0.1505122,84672.0,84671.0,0.00991045]
[1744871384655,0.1505122,84672.0,84671.0,0.01291045]
[1744871385466,0.1824122,84672.0,84671.0,0.01291045]
[1744871387162,0.1824122,84672.0,84671.0,0.01191045]
[1744871387563,0.1824122,84672.0,84671.0,0.01091045]
[1744871387863,0.1824122,84672.0,84671.0,0.01191045]
[1744871388364,0.1824122,84672.0,84671.0,0.01091045]
[1744871388563,0.1824122,84672.0,84671.0,0.01191045]
[1744871391356,0.1181234,84664.0,84663.0,0.00017711]
[1744871391665,0.1181234,84664.0,84663.0,0.00905886]
[1744871391861,0.1181234,84664.0,84663.0,0.03037711]
[1744871392053,0.4789234,84664.0,84663.0,0.03037711]
[1744871392252,0.5428234,84664.0,84663.0,0.03037711]
[1744871392954,0.5428234,84664.0,84663.0,0.03137711]
[1744871393559,0.5428234,84664.0,84663.0,0.03337711]
[1744871393762,0.5428234,84664.0,84663.0,0.03237711]
[1744871393960,0.5428234,84664.0,84663.0,0.03337711]
[1744871394162,0.5428234,84664.0,84663.0,0.04238737]
[1744871394960,0.1181303,84659.0,84658.0,0.0304]
[1744871395271,0.1181359,84655.0,84654.0,0.0333]
[1744871396562,0.1488359,84655.0,84654.0,0.04216177]
[1744871397271,0.1181359,84655.0,84654.0,0.04216177]
[1744871398073,0.1181359,84655.0,84654.0,0.04316177]
[1744871398275,0.1181359,84655.0,84654.0,0.07626177]
[1744871399575,0.1181359,84655.0,84654.0,0.07526177]
[1744871400970,8e-05,84655.0,84654.0,0.19339907]
[1744871401171,8e-05,84655.0,84654.0,0.55419907]
[1744871401569,0.1181298,84660.0,84659.0,0.1181303]
[1744871402372,0.1181298,84660.0,84659.0,0.0611]
[1744871402970,0.1181298,84660.0,84659.0,0.1792303]
[1744871403471,0.1191298,84660.0,84659.0,0.1792303]
[1744871404062,0.001,84660.0,84659.0,0.1792303]
[1744871404476,0.1191289,84660.0,84659.0,0.1792303]
[1744871404676,0.1192089,84660.0,84659.0,0.1792303]
[1744871406863,0.1192089,84660.0,84659.0,0.0611]
[1744871407469,0.1192089,84660.0,84659.0,0.1792303]
[1744871407664,0.1517089,84660.0,84659.0,0.1792303]
[1744871408578,0.1192089,84660.0,84659.0,0.1792303]
[1744871408778,0.00108,84660.0,84659.0,0.1792303]
[1744871408969,0.001,84660.0,84659.0,0.1792303]
[1744871409168,0.1192089,84660.0,84659.0,0.1792303]
[1744871409373,0.1191289,84660.0,84659.0,0.1792303]
[1744871409575,0.1192089,84660.0,84659.0,0.1792303]
[1744871411776,0.1192089,84660.0,84659.0,0.2608303]
[1744871418273,0.00108,84660.0,84659.0,0.2608303]
[1744871418475,0.1192089,84660.0,84659.0,0.2608303]
[1744871419081,0.0900603,84666.0,84659.0,0.2608303]
[1744871419082,0.4114,84687.0,84659.0,0.451765]
[1744871419382,0.1230787,84696.0,84695.0,0.1180801]
[1744871419681,0.1230787,84696.0,84669.0,0.7216]
[1744871419682,0.1180801,84695.0,84694.0,0.0622]
[1744871419884,0.1489801,84695.0,84694.0,0.0622]
[1744871420087,0.1490601,84695.0,84694.0,0.0622]
[1744871420678,0.1800601,84695.0,84694.0,0.0622]
[1744871420878,0.1800601,84695.0,84694.0,0.0317]
[1744871422886,0.1180857,84691.0,84690.0,0.1485859]
[1744871423483,0.1180885,84689.0,84688.0,0.08024]
[1744871424082,0.1510885,84689.0,84688.0,0.08024]
[1744871424288,0.1820885,84689.0,84688.0,0.08024]
[1744871425084,0.1820885,84689.0,84688.0,0.08224]
[1744871426284,0.1820885,84689.0,84688.0,0.08324]
[1744871426786,0.0590491,84682.0,84674.0,0.01]
[1744871426987,0.1181024,84679.0,84675.0,0.0301]
[1744871427494,0.1181024,84679.0,84674.0,0.08024]
[1744871427788,0.118108,84675.0,84674.0,0.08024]
[1744871428688,0.182808,84675.0,84674.0,0.08024]
[1744871430190,0.182808,84675.0,84674.0,0.08124]
[1744871430383,0.1181136,84671.0,84670.0,0.00017711]
[1744871431178,0.1817136,84671.0,84670.0,0.00017711]
[1744871432191,0.1817136,84671.0,84670.0,0.00117711]
[1744871432783,0.1817136,84671.0,84670.0,0.00317711]
[1744871435590,0.5931136,84671.0,84670.0,0.00317711]
[1744871436387,0.1181303,84659.0,84658.0,0.0304]
[1744871437292,0.1811303,84659.0,84658.0,0.0304]
[1744871437999,0.1811303,84659.0,84658.0,0.0354]
[1744871438200,0.1811303,84659.0,84658.0,0.0384]
[1744871438691,0.1811303,84659.0,84658.0,0.008]
[1744871439198,0.1181359,84655.0,84654.0,0.08910177]
[1744871440103,0.1788359,84655.0,84654.0,0.08910177]
[1744871440709,0.1788359,84655.0,84654.0,0.09010177]
[1744871441903,0.1788359,84655.0,84654.0,0.09110177]
[1744871445504,0.1485359,84655.0,84654.0,0.09110177]
[1744871446698,0.1485359,84655.0,84654.0,0.20923907]
[1744871447105,0.1485359,84655.0,84654.0,0.09110177]
[1744871449396,0.1485359,84655.0,84654.0,0.01086177]
[1744871450199,0.1803359,84655.0,84654.0,0.01086177]
[1744871460914,8e-05,84655.0,84654.0,0.01086177]
[1744871461119,0.1182159,84655.0,84654.0,0.12899847]
[1744871461418,0.1181312,84659.0,84658.0,0.1181303]
[1744871461604,0.1181312,84659.0,84658.0,0.4789303]
[1744871461910,0.00017711,84663.0,84662.0,0.1181261]
[1744871462407,0.00017711,84663.0,84662.0,0.1498261]
[1744871462612,0.00025711,84663.0,84662.0,0.1498261]
[1744871463407,0.00017711,84663.0,84662.0,0.1498261]
[1744871463608,0.00025711,84663.0,84662.0,0.1498261]
[1744871464114,0.11838191,84663.0,84662.0,0.1498261]
[1744871464316,0.11938191,84663.0,84662.0,0.1498261]
[1744871464521,0.12138191,84663.0,84662.0,0.1498261]
[1744871465416,0.12138191,84663.0,84662.0,0.2286661]
[1744871465911,0.12138191,84663.0,84662.0,0.11054]
[1744871466417,0.11938191,84663.0,84662.0,0.11054]
[1744871466606,0.11838191,84663.0,84662.0,0.11054]
[1744871466807,0.11838191,84663.0,84662.0,0.11154]
[1744871467011,0.11838191,84663.0,84662.0,0.11254]
[1744871467416,0.11838191,84663.0,84662.0,0.11154]
[1744871467618,0.11838191,84663.0,84662.0,0.11254]
[1744871467915,0.11838191,84663.0,84662.0,0.5914661]
[1744871470105,0.00025711,84663.0,84662.0,0.5914661]
[1744871470509,0.00017711,84663.0,84662.0,0.5914661]
[1744871470709,0.00025711,84663.0,84662.0,0.5914661]
[1744871470909,0.00017711,84663.0,84662.0,0.5914661]
[1744871471109,0.00025711,84663.0,84662.0,0.5914661]
[1744871472427,0.0590482,84684.0,84681.0,0.0590486]
[1744871472610,0.0303,84683.0,84682.0,0.3933]
[1744871473215,0.03038,84683.0,84682.0,0.3933]
[1744871473720,0.1484782,84683.0,84682.0,0.5113982]
[1744871474513,0.1534782,84683.0,84682.0,0.5113982]
[1744871475519,0.1231782,84683.0,84682.0,0.5113982]
[1744871475721,0.00508,84683.0,84682.0,0.5113982]
[1744871477120,0.00108,84683.0,84682.0,0.5113982]
[1744871477420,0.001,84683.0,84682.0,0.5113982]
[1744871477622,0.0327,84688.0,84687.0,0.1180913]
[1744871479114,0.1507899,84688.0,84687.0,0.1180913]
[1744871479613,0.1507899,84688.0,84687.0,0.1190913]
[1744871481020,0.1507899,84688.0,84687.0,0.1180913]
[1744871481218,0.0590465,84686.0,84682.0,0.3608]
[1744871481518,0.1180969,84683.0,84682.0,0.3608]
[1744871482817,0.1190969,84683.0,84682.0,0.4788982]
[1744871483821,0.1180969,84683.0,84682.0,0.4788982]
[1744871484028,0.1190969,84683.0,84682.0,0.4788982]
[1744871484428,0.1190969,84683.0,84682.0,0.1180982]
[1744871485624,0.1180969,84683.0,84682.0,0.1180982]
[1744871485814,0.1190969,84683.0,84682.0,0.1180982]
[1744871490922,0.0590497,84682.0,84679.0,0.3608]
[1744871491231,0.118101,84680.0,84679.0,0.3608]
[1744871491532,0.118101,84680.0,84679.0,0.4789024]
[1744871491731,0.149301,84680.0,84679.0,0.4789024]
[1744871492332,0.150301,84680.0,84679.0,0.4789024]
[1744871502541,0.150301,84680.0,84679.0,0.1181024]
[1744871502730,0.149301,84680.0,84679.0,0.4789024]
[1744871502930,0.150301,84680.0,84679.0,0.4789024]
[1744871503434,0.150301,84680.0,84679.0,0.5113024]
[1744871503638,0.150301,84680.0,84679.0,0.5440024]
[1744871504640,0.149301,84680.0,84679.0,0.5440024]
[1744871508338,0.118101,84680.0,84679.0,0.5440024]
[1744871511139,0.118181,84680.0,84679.0,0.5440024]
[1744871511339,8e-05,84680.0,84679.0,0.5440024]
[1744871511639,0.03277711,84691.0,84690.0,0.1180871]
[1744871512027,0.20991251,84691.0,84690.0,0.1180871]
[1744871512227,0.20999251,84691.0,84690.0,0.1815871]
[1744871513645,0.26903621,84691.0,84690.0,0.1815871]
[1744871514332,0.27003621,84691.0,84690.0,0.1815871]
[1744871515548,0.27003621,84691.0,84690.0,0.0305]